fUSD/lending_fUSD_20241121
["ID","MTS","AMOUNT","RATE_DAILY","PERIOD"]
[342876415,1732191100975,-500.0,0.00042191,18]
[342876416,1732191100985,-281.44,0.00042191,7]
[342876417,1732191100995,-500.0,0.00042191,18]
[342876418,1732191101005,-500.0,0.00042191,18]
[342876419,1732191101014,-2059.53,0.00042191,18]
[342876420,1732191101024,-500.0,0.00042191,18]
[342876421,1732191101034,-1406.26,0.00042191,18]
[342876422,1732191101044,-500.0,0.00042191,18]
[342876423,1732191101053,-1663.99,0.00042191,18]
[342876424,1732191101063,-1947.29,0.00042191,18]
[342876425,1732191101073,-500.0,0.00042191,18]
[342876426,1732191101083,-2134.17,0.00042191,18]
[342876427,1732191101093,-552.13,0.00042191,18]
[342876428,1732191101103,-2092.26,0.00042191,18]
[342876429,1732191101113,-3350.24,0.00042191,18]
[342876430,1732191101125,-524.8,0.00042191,18]
[342876431,1732191101136,-507.0,0.00042191,18]
[342876432,1732191101146,-500.0,0.00042191,18]
[342876433,1732191101156,-47253.13,0.00042191,18]
[342876434,1732191101437,-1295.33,0.00042191,18]
[342876435,1732191101446,-525.81,0.00042191,18]
[342876436,1732191101456,-926.88,0.00042191,18]
[342876437,1732191101466,-861.54,0.00042191,18]
[342876438,1732191101476,-500.0,0.00042191,18]
[342876439,1732191101486,-7223.51,0.00042191,18]
[342876440,1732191101495,-1922.86,0.00042191,18]
[342876441,1732191101505,-500.0,0.00042191,18]
[342876442,1732191101514,-2342.03,0.00042191,18]
[342876443,1732191101523,-3228.25,0.00042191,18]
[342876444,1732191101532,-500.0,0.00042191,18]
[342876445,1732191101542,-500.0,0.00042191,18]
[342876446,1732191101552,-608.79,0.00042191,18]
[342876447,1732191101561,-599.94,0.00042191,18]
[342876448,1732191101570,-1462.98,0.00042191,18]
[342876449,1732191101579,-1367.89345375,0.00042191,18]
[342876450,1732191102257,-55.25654625,0.00042191,18]
[342876451,1732191102266,-500.0,0.00042191,18]
[342876452,1732191102277,-500.0,0.00042191,18]
[342876453,1732191102286,-500.0,0.00042191,18]
[342876454,1732191102299,-1030.0,0.00042191,18]
[342876455,1732191102308,-5402.58,0.00042191,18]
[342876456,1732191102317,-500.0,0.00042191,18]
[342876457,1732191102327,-688.23,0.00042191,18]
[342876458,1732191102336,-500.0,0.00042191,18]
[342876459,1732191102346,-505.96,0.00042191,18]
[342876460,1732191102355,-2642.3,0.00042191,18]
[342876461,1732191102364,-626.67811418,0.00042191,18]
[342876462,1732191102376,-811.93,0.00042191,18]
[342876463,1732191102385,-1585.57,0.00042191,18]
[342876464,1732191102395,-500.0,0.00042191,18]
[342876465,1732191102404,-1261.49,0.00042191,18]
[342876466,1732191102413,-875.91,0.00042191,18]
[342876467,1732191102423,-553.57,0.00042191,18]
[342876468,1732191102433,-500.0,0.00042191,18]
[342876469,1732191102442,-934.75,0.00042191,18]
[342876470,1732191102451,-500.0,0.00042191,18]
[342876471,1732191102460,-918.0,0.00042191,18]
[342876472,1732191102470,-1326.44,0.00042191,18]
[342876473,1732191102482,-336.94417116,0.00042191,18]
[342876474,1732191102492,-1013.06,0.00042191,18]
[342876475,1732191102502,-1786.58,0.00042191,18]
[342876476,1732191102511,-1103.31,0.00042191,18]
[342876477,1732191102521,-506.12,0.00042191,18]
[342876478,1732191102530,-500.0,0.00042191,18]
[342876479,1732191102539,-598.61,0.00042191,18]
[342876480,1732191102549,-2129.07,0.00042191,18]
[342876481,1732191102559,-500.0,0.00042191,18]
[342876482,1732191102569,-500.0,0.00042191,18]
[342876483,1732191102579,-500.0,0.00042191,18]
[342876484,1732191102590,-500.0,0.00042191,18]
[342876485,1732191102600,-3261.05,0.00042191,18]
[342876486,1732191102610,-500.0,0.00042191,18]
[342876487,1732191102619,-5158.19,0.00042191,18]
[342876488,1732191102631,-1136.22,0.00042191,18]
[342876489,1732191102640,-1352.8,0.00042191,18]
[342876490,1732191102650,-593.86,0.00042191,18]
[342876491,1732191102660,-1493.18,0.00042191,18]
[342876492,1732191102670,-567.35,0.00042191,18]
[342876493,1732191102679,-500.0,0.00042191,18]
[342876494,1732191102690,-500.0,0.00042191,18]
[342876495,1732191102699,-78.15142257,0.00042191,18]
[342876496,1732191102712,-421.84857743,0.00042191,18]
[342876497,1732191102723,-1351.96,0.00042191,18]
[342876498,1732191102732,-1147.31,0.00042191,18]
[342876499,1732191102741,-500.0,0.00042191,18]
[342876500,1732191102751,-500.0,0.00042191,18]
[342876501,1732191102760,-500.0,0.00042191,18]
[342876502,1732191102770,-500.0,0.00042191,18]
[342876503,1732191102780,-500.0,0.00042191,18]
[342876504,1732191102790,-773.85,0.00042191,18]
[342876505,1732191102800,-1199.73,0.00042191,18]
[342876506,1732191102809,-2239.99222277,0.00042191,18]
[342876507,1732191102822,-111.77777723,0.00042191,18]
[342876508,1732191102831,-1793.0,0.00042191,18]
[342876509,1732191102840,-858.69,0.00042191,18]
[342876510,1732191102850,-545.3,0.00042191,18]
[342876511,1732191102860,-500.0,0.00042191,18]
[342876512,1732191102870,-500.0,0.00042191,18]
[342876513,1732191102881,-1052.15,0.00042191,18]
[342876514,1732191102890,-798.38,0.00042191,18]
[342876515,1732191102899,-500.0,0.00042191,18]
[342876516,1732191102909,-553.4,0.00042191,18]
[342876517,1732191102919,-657.68,0.00042191,18]
[342876518,1732191102929,-500.0,0.00042191,18]
[342876519,1732191102938,-1089.06,0.00042191,18]
[342876520,1732191102947,-1049.96,0.00042191,18]
[342876521,1732191102955,-2885.1,0.00042191,18]
[342876522,1732191102965,-919.52,0.00042191,18]
[342876523,1732191102973,-681.87,0.00042191,18]
[342876524,1732191102982,-617.73,0.00042191,18]
[342876525,1732191102991,-500.0,0.00042191,18]
[342876526,1732191103000,-2805.64,0.00042191,18]
[342876527,1732191103009,-1232.85,0.00042191,18]
[342876528,1732191103018,-500.0,0.00042191,18]
[342876529,1732191103027,-3409.36,0.00042191,18]
[342876530,1732191103036,-627.86,0.00042191,18]
[342876531,1732191103045,-1585.7,0.00042191,18]
[342876532,1732191103054,-500.0,0.00042191,18]
[342876533,1732191103063,-1005.04,0.00042191,18]
[342876534,1732191103072,-7862.91,0.00042191,18]
[342876535,1732191103081,-500.0,0.00042191,18]
[342876536,1732191103090,-542.65,0.00042191,18]
[342876537,1732191103099,-500.0,0.00042191,18]
[342876538,1732191103107,-1771.73,0.00042191,18]
[342876539,1732191103116,-4270.9,0.00042191,18]
[342876540,1732191103126,-500.0,0.00042191,18]
[342876541,1732191103135,-1246.17,0.00042191,18]
[342876542,1732191103144,-1493.62,0.00042191,18]
[342876543,1732191103152,-1470.35,0.00042191,18]
[342876544,1732191103162,-884.87,0.00042191,18]
[342876545,1732191103171,-858.23,0.00042191,18]
[342876546,1732191103181,-658.39,0.00042191,18]
[342876547,1732191103190,-2000.0,0.00042191,30]
[342876548,1732191103199,-500.0,0.00042191,18]
[342876549,1732191103208,-500.0,0.00042191,18]
[342876550,1732191103217,-500.0,0.00042191,18]
[342876551,1732191103226,-1081.78,0.00042191,18]
[342876552,1732191103236,-342.77710791,0.00042191,18]
[342876553,1732191103245,-1274.32,0.00042191,18]
[342876554,1732191103255,-500.0,0.00042191,18]
[342876555,1732191103264,-552.35,0.00042191,18]
[342876556,1732191103274,-500.0,0.00042191,18]
[342876557,1732191103284,-500.0,0.00042191,18]
[342876558,1732191103294,-500.0,0.00042191,18]
[342876559,1732191103305,-500.0,0.00042191,18]
[342876560,1732191103315,-1089.06,0.00042191,18]
[342876561,1732191103325,-500.0,0.00042191,18]
[342876562,1732191103334,-1466.43,0.00042191,18]
[342876563,1732191103343,-500.0,0.00042191,18]
[342876564,1732191103352,-500.0,0.00042191,18]
[342876565,1732191103361,-3365.8,0.00042191,18]
[342876566,1732191103370,-3585.25,0.00042191,18]
[342876567,1732191103383,-500.0,0.00042191,18]
[342876568,1732191103393,-858.17,0.00042191,18]
[342876569,1732191103402,-1748.97,0.00042191,18]
[342876570,1732191103411,-500.0,0.00042191,18]
[342876571,1732191103420,-1564.38,0.00042191,18]
[342876572,1732191103430,-500.0,0.00042191,18]
[342876573,1732191103439,-657.23,0.00042191,18]
[342876574,1732191103449,-1071.71,0.00042191,18]
[342876575,1732191103459,-1890.95,0.00042191,18]
[342876576,1732191103468,-500.0,0.00042191,18]
[342876577,1732191103477,-896.89,0.00042191,18]
[342876578,1732191103487,-1500.0,0.00042191,120]
[342876579,1732191103496,-500.0,0.00042191,18]
[342876580,1732191103505,-1353.47,0.00042191,18]
[342876581,1732191103514,-565.65,0.00042191,18]
[342876582,1732191103523,-436.35397232,0.00042191,18]
[342876583,1732191103533,-1702.36,0.00042191,18]
[342876584,1732191103542,-1897.51,0.00042191,18]
[342876585,1732191103552,-1131.28,0.00042191,18]
[342876586,1732191103561,-3234.69,0.00042191,18]
[342876587,1732191103571,-500.0,0.00042191,18]
[342876588,1732191103698,-500.0,0.00042191,18]
[342876589,1732191103708,-1141.75,0.00042191,18]
[342876590,1732191103718,-500.0,0.00042191,18]
[342876591,1732191103728,-764.9,0.00042191,18]
[342876592,1732191103737,-500.0,0.00042191,18]
[342876593,1732191103746,-1881.36,0.00042191,18]
[342876594,1732191103755,-622.97581364,0.00042191,18]
[342876595,1732191103765,-500.0,0.00042191,18]
[342876596,1732191103774,-701.88,0.00042191,18]
[342876597,1732191103784,-1103.92118756,0.00042191,18]
[342876598,1732191103805,-365.13,0.00041918,30]
[342876599,1732191103815,-682.29881244,0.00042191,18]
[342876600,1732191103824,-917.21,0.00042191,18]
[342876601,1732191103834,-522.5,0.00042191,18]
[342876602,1732191103843,-5276.31,0.00042191,18]
[342876603,1732191103853,-667.39,0.00042191,18]
[342876604,1732191103862,-1083.07,0.00042191,18]
[342876605,1732191103871,-695.5,0.00042191,18]
[342876606,1732191103883,-947.55,0.00042191,18]
[342876607,1732191103892,-1153.93,0.00042191,18]
[342876608,1732191103902,-500.0,0.00042191,18]
[342876609,1732191103911,-1128.35,0.00042191,18]
[342876610,1732191103921,-5493.63,0.00042191,18]
[342876611,1732191103931,-531.95,0.00042191,18]
[342876612,1732191103940,-500.0,0.00042191,18]
[342876613,1732191103951,-1181.43,0.00042191,18]
[342876614,1732191103961,-1117.88,0.00042191,18]
[342876615,1732191103970,-1859.5,0.00042191,18]
[342876616,1732191103982,-1554.92,0.00042191,18]
[342876617,1732191103992,-500.0,0.00042191,18]
[342876618,1732191104001,-772.67,0.00042191,18]
[342876619,1732191104010,-4375.24125516,0.00042191,18]
[342876620,1732191104066,-5300.0,0.00042191,18]
[342876621,1732191104078,-18966.88874484,0.00042191,18]
[342876622,1732191104089,-1091.78,0.00042191,18]
[342876623,1732191104098,-4438.03,0.00042191,18]
[342876624,1732191104107,-3310.48,0.00042191,18]
[342876625,1732191104118,-1442.82,0.00042191,18]
[342876626,1732191104128,-1211.34,0.00042191,18]
[342876627,1732191104137,-780.76,0.00042191,18]
[342876628,1732191104146,-500.0,0.00042191,18]
[342876629,1732191104156,-500.0,0.00042191,18]
[342876630,1732191104165,-500.0,0.00042191,18]
[342876631,1732191104174,-500.0,0.00042191,18]
[342876632,1732191104183,-500.0,0.00042191,18]
[342876633,1732191104192,-2703.44,0.00042191,18]
[342876634,1732191104201,-1087.66,0.00042191,18]
[342876635,1732191104210,-500.0,0.00042191,18]
[342876636,1732191104219,-677.74,0.00042191,18]
[342876637,1732191104229,-500.0,0.00042191,18]
[342876638,1732191104238,-500.0,0.00042191,18]
[342876639,1732191104247,-1473.9,0.00042191,18]
[342876640,1732191104256,-500.0,0.00042191,18]
[342876641,1732191104265,-1559.25,0.00042191,18]
[342876642,1732191104275,-784.71,0.00042191,18]
[342876643,1732191104287,-500.0,0.00042191,18]
[342876644,1732191104296,-3822.14,0.00042191,18]
[342876645,1732191104309,-863.55,0.00042191,18]
[342876646,1732191104318,-500.0,0.00042191,18]
[342876647,1732191104327,-2128.78,0.00042191,18]
[342876648,1732191104336,-2107.31,0.00042191,18]
[342876649,1732191104345,-500.0,0.00042191,18]
[342876650,1732191104355,-1350.13,0.00042191,18]
[342876651,1732191104364,-1838.09,0.00042191,18]
[342876652,1732191104374,-500.0,0.00042191,18]
[342876653,1732191104386,-500.0,0.00042191,18]
[342876654,1732191104396,-3867.41,0.00042191,18]
[342876655,1732191104406,-2697.41,0.00042191,18]
[342876656,1732191104415,-500.0,0.00042191,18]
[342876657,1732191104424,-3295.78,0.00042191,18]
[342876658,1732191104434,-718.71,0.00042191,18]
[342876659,1732191104443,-2926.81,0.00042191,18]
[342876660,1732191104453,-500.0,0.00042191,18]
[342876661,1732191104462,-500.0,0.00042191,18]
[342876662,1732191104471,-577.22,0.00042191,18]
[342876663,1732191104480,-500.0,0.00042191,18]
[342876664,1732191104490,-1064.06,0.00042191,18]
[342876665,1732191104500,-1197.49,0.00042191,18]
[342876666,1732191104510,-500.0,0.00042191,18]
[342876667,1732191104519,-4330.34,0.00042191,18]
[342876668,1732191104528,-1471.96,0.00042191,18]
[342876669,1732191104537,-1009.74,0.00042191,18]
[342876670,1732191104546,-6560.59,0.00042191,18]
[342876671,1732191104555,-3927.28,0.00042191,18]
[342876672,1732191104565,-500.0,0.00042191,18]
[342876673,1732191104574,-1771.65,0.00042191,18]
[342876674,1732191104583,-2694.07,0.00042191,18]
[342876675,1732191104592,-1012.14,0.00042191,18]
[342876676,1732191104602,-712.49,0.00042191,18]
[342876677,1732191104612,-505.93,0.00042191,18]
[342876678,1732191104622,-500.0,0.00042191,18]
[342876679,1732191104634,-252.63656283,0.00042191,18]
[342876680,1732191104644,-1933.02,0.00042191,18]
[342876681,1732191104654,-684.26,0.00042191,18]
[342876682,1732191104663,-890.59,0.00042191,18]
[342876683,1732191104673,-1383.85,0.00042191,18]
[342876684,1732191104682,-500.0,0.00042191,18]
[342876685,1732191104692,-500.0,0.00042191,18]
[342876686,1732191104701,-546.92,0.00042191,18]
[342876687,1732191104711,-548.79,0.00042191,18]
[342876688,1732191104720,-500.0,0.00042191,18]
[342876689,1732191104729,-9944.36,0.00042191,18]
[342876690,1732191104739,-1092.83,0.00042191,18]
[342876691,1732191104748,-3022.52,0.00042191,18]
[342876692,1732191104757,-628.62,0.00042191,18]
[342876693,1732191104766,-9812.49,0.00042191,18]
[342876694,1732191104776,-500.0,0.00042191,18]
[342876695,1732191104785,-625.87,0.00042191,18]
[342876696,1732191104794,-2889.87,0.00042191,18]
[342876697,1732191104803,-876.62,0.00042191,18]
[342876698,1732191104814,-500.0,0.00042191,18]
[342876699,1732191104823,-500.0,0.00042191,18]
[342876700,1732191104832,-500.0,0.00042191,18]
[342876701,1732191104841,-638.97,0.00042191,18]
[342876702,1732191104851,-3758.42,0.00042191,18]
[342876703,1732191104860,-713.38,0.00042191,18]
[342876704,1732191104869,-500.0,0.00042191,18]
[342876705,1732191104882,-1054.34,0.00042191,18]
[342876706,1732191104891,-2111.22,0.00042191,18]
[342876707,1732191104900,-1023.72,0.00042191,7]
[342876708,1732191104909,-500.0,0.00042191,18]
[342876709,1732191104918,-616.03,0.00042191,18]
[342876710,1732191104927,-500.0,0.00042191,18]
[342876711,1732191104936,-500.0,0.00042191,18]
[342876712,1732191104946,-856.02,0.00042191,18]
[342876713,1732191104955,-11002.05,0.00042191,18]
[342876714,1732191104964,-4076.9,0.00042191,18]
[342876715,1732191104973,-1492.62,0.00042191,18]
[342876716,1732191104982,-731.6,0.00042191,18]
[342876717,1732191104991,-503.13,0.00042191,18]
[342876718,1732191105000,-1000.0,0.00042191,5]
[342876719,1732191105010,-1216.73,0.00042191,18]
[342876720,1732191105019,-500.0,0.00042191,18]
[342876721,1732191105028,-5320.84,0.00042191,18]
[342876722,1732191105037,-500.0,0.00042191,18]
[342876723,1732191105046,-568.54,0.00042191,18]
[342876724,1732191105055,-12057.03,0.00042191,18]
[342876725,1732191105064,-500.0,0.00042191,18]
[342876726,1732191105074,-933.93,0.00042191,18]
[342876727,1732191105083,-545.26,0.00042191,18]
[342876728,1732191105092,-2278.97,0.00042191,18]
[342876729,1732191105101,-535.06,0.00042191,18]
[342876730,1732191105111,-500.0,0.00042191,2]
[342876731,1732191105120,-789.08,0.00042191,18]
[342876732,1732191105133,-1241.7,0.00042191,18]
[342876733,1732191105142,-500.0,0.00042191,18]
[342876734,1732191105152,-7669.61,0.00042191,18]
[342876735,1732191105161,-516.52,0.00042191,18]
[342876736,1732191105170,-2437.26,0.00042191,18]
[342876737,1732191105179,-500.96,0.00042191,18]
[342876738,1732191105189,-500.0,0.00042191,18]
[342876739,1732191105198,-433.47,0.00042247,30]
[342876740,1732191105208,-300.0,0.00042247,30]
[342876741,1732191105217,-75000.0,0.0004228,120]
[342876742,1732191105227,-526.52958,0.00042288,30]
[342876743,1732191105237,-80000.0,0.000423,120]
[342876744,1732191105248,-860.48987024,0.00042323,15]
[342876745,1732191105258,-80000.0,0.0004233,120]
[342876746,1732191105269,-200.0,0.0004235,30]
[342876747,1732191105279,-1498.92366148,0.00042365,120]
[342876748,1732191105291,-1498.92366148,0.00042365,120]
[342876749,1732191105305,-1498.92366148,0.00042365,120]
[342876750,1732191105314,-1498.92366148,0.00042365,120]
[342876751,1732191105324,-1498.92366148,0.00042365,120]
[342876752,1732191105334,-1498.92366148,0.00042365,120]
[342876753,1732191105344,-1498.92366148,0.00042365,120]
[342876754,1732191105353,-1498.92366148,0.00042365,120]
[342876755,1732191105362,-1498.92366148,0.00042365,120]
[342876756,1732191105371,-1498.92366148,0.00042365,120]
[342876757,1732191105382,-1498.92366148,0.00042365,120]
[342876758,1732191105392,-1498.92366148,0.00042365,120]
[342876759,1732191105401,-1498.92366148,0.00042365,120]
[342876760,1732191105410,-1498.92366148,0.00042365,120]
[342876761,1732191105419,-2110.0,0.00042369,30]
[342876762,1732191105429,-168.24,0.00042372,2]
[342876763,1732191105438,-157.02,0.00042374,2]
[342876764,1732191105447,-200.61206984,0.00042391,28]
[342876765,1732191105457,-250000.0,0.000424,120]
[342876766,1732191105467,-152.0,0.00042428,3]
[342876767,1732191105475,-200.0,0.00042457,120]
[342876768,1732191105485,-180.13,0.00042457,120]
[342876769,1732191105495,-500.0,0.00042465,18]
[342876770,1732191105504,-1092.56,0.00042465,18]
[342876771,1732191105513,-500.0,0.00042465,18]
[342876772,1732191105522,-500.0,0.00042465,18]
[342876773,1732191105531,-500.0,0.00042465,18]
[342876774,1732191105541,-500.0,0.00042465,18]
[342876775,1732191105550,-832.13,0.00042465,18]
[342876776,1732191105560,-500.0,0.00042465,18]
[342876777,1732191105569,-619.42287643,0.00042465,18]
[342876778,1732191105579,-1272.94,0.00042465,18]
[342876779,1732191105589,-500.0,0.00042465,18]
[342876780,1732191105598,-1429.49,0.00042465,18]
[342876781,1732191105608,-500.0,0.00042465,18]
[342876782,1732191105618,-629.79,0.00042465,18]
[342876783,1732191105630,-500.0,0.00042465,18]
[342876784,1732191105640,-500.0,0.00042465,18]
[342876785,1732191105649,-510.69,0.00042465,18]
[342876786,1732191105659,-500.0,0.00042465,18]
[342876787,1732191105668,-500.0,0.00042465,18]
[342876788,1732191105678,-500.0,0.00042465,18]
[342876789,1732191105688,-500.0,0.00042465,18]
[342876790,1732191105698,-500.0,0.00042465,18]
[342876791,1732191105707,-500.0,0.00042465,18]
[342876792,1732191105718,-500.0,0.00042465,18]
[342876793,1732191105727,-705.11,0.00042465,18]
[342876794,1732191105737,-500.0,0.00042465,18]
[342876795,1732191105748,-224.156427,0.00042465,18]
[342876796,1732191105757,-154.589909,0.00042465,18]
[342876797,1732191105767,-1344.138509,0.00042465,18]
[342876798,1732191105777,-539.58,0.00042465,18]
[342876799,1732191105787,-777.22,0.00042465,18]
[342876800,1732191105796,-500.0,0.00042465,18]
[342876801,1732191105806,-500.0,0.00042465,18]
[342876802,1732191105815,-500.0,0.00042465,18]
[342876803,1732191105825,-500.0,0.00042465,18]
[342876804,1732191105834,-500.0,0.00042465,18]
[342876805,1732191105843,-500.0,0.00042465,18]
[342876806,1732191105853,-519.67,0.00042465,18]
[342876807,1732191105862,-500.0,0.00042465,18]
[342876808,1732191105872,-1026.26,0.00042465,18]
[342876809,1732191105884,-500.0,0.00042465,18]
[342876810,1732191105893,-500.0,0.00042465,18]
[342876811,1732191105903,-500.0,0.00042465,18]
[342876812,1732191105912,-1295.59,0.00042465,18]
[342876813,1732191105921,-1219.81,0.00042465,18]
[342876814,1732191105930,-500.0,0.00042465,18]
[342876815,1732191105940,-347.94393781,0.00042465,18]
[342876816,1732191105949,-862.96,0.00042465,18]
[342876817,1732191105959,-500.0,0.00042465,18]
[342876818,1732191105969,-869.69,0.00042465,18]
[342876819,1732191105979,-935.36,0.00042465,18]
[342876820,1732191105988,-500.0,0.00042465,18]
[342876821,1732191105997,-500.0,0.00042465,18]
[342876822,1732191106007,-500.0,0.00042465,18]
[342876823,1732191106016,-500.0,0.00042465,18]
[342876824,1732191106027,-500.0,0.00042465,18]
[342876825,1732191106036,-500.0,0.00042465,18]
[342876826,1732191106045,-500.0,0.00042465,18]
[342876827,1732191106055,-500.0,0.00042465,18]
[342876828,1732191106065,-836.32,0.00042465,18]
[342876829,1732191106074,-500.0,0.00042465,18]
[342876830,1732191106083,-500.0,0.00042465,18]
[342876831,1732191106093,-500.0,0.00042465,18]
[342876832,1732191106102,-500.0,0.00042465,18]
[342876833,1732191106112,-1005.03,0.00042465,18]
[342876834,1732191106121,-879.18,0.00042465,18]
[342876835,1732191106133,-500.0,0.00042465,18]
[342876836,1732191106143,-500.0,0.00042465,18]
[342876837,1732191106152,-500.0,0.00042465,18]
[342876838,1732191106162,-635.38677325,0.00042465,18]
[342876839,1732191106171,-711.84,0.00042465,18]
[342876840,1732191106181,-955.79,0.00042465,18]
[342876841,1732191106190,-1538.51,0.00042465,18]
[342876842,1732191106199,-1722.25,0.00042465,18]
[342876843,1732191106208,-500.0,0.00042465,18]
[342876844,1732191106218,-500.0,0.00042465,18]
[342876845,1732191106228,-587.6,0.00042465,18]
[342876846,1732191106238,-500.0,0.00042465,18]
[342876847,1732191106248,-500.0,0.00042465,18]
[342876848,1732191106257,-500.0,0.00042465,18]
[342876849,1732191106267,-771.25,0.00042465,18]
[342876850,1732191106276,-858.83,0.00042465,18]
[342876851,1732191106288,-500.0,0.00042465,18]
[342876852,1732191106300,-500.0,0.00042465,18]
[342876853,1732191106310,-1220.6,0.00042465,7]
[342876854,1732191106320,-500.0,0.00042465,18]
[342876855,1732191106331,-500.0,0.00042465,18]
[342876856,1732191106340,-500.0,0.00042465,18]
[342876857,1732191106350,-562.03,0.00042465,18]
[342876858,1732191106360,-1023.62,0.00042465,18]
[342876859,1732191106369,-840.69,0.00042465,18]
[342876860,1732191106384,-1112.29,0.00042465,18]
[342876861,1732191106394,-500.0,0.00042465,18]
[342876862,1732191106403,-500.0,0.00042465,18]
[342876863,1732191106413,-1027.77,0.00042465,18]
[342876864,1732191106422,-1029.65,0.00042465,18]
[342876865,1732191106433,-500.0,0.00042465,18]
[342876866,1732191106444,-542.49,0.00042465,18]
[342876867,1732191106454,-500.0,0.00042465,18]
[342876868,1732191106467,-1306.56,0.00042465,18]
[342876869,1732191106476,-805.03,0.00042465,18]
[342876870,1732191106485,-523.85,0.00042465,18]
[342876871,1732191106495,-500.0,0.00042465,18]
[342876872,1732191106504,-3785.91,0.00042465,18]
[342876873,1732191106514,-500.0,0.00042465,18]
[342876874,1732191106523,-561.82,0.00042465,18]
[342876875,1732191106534,-1136.86,0.00042465,18]
[342876876,1732191106544,-706.3,0.00042465,18]
[342876877,1732191106553,-500.0,0.00042465,18]
[342876878,1732191106563,-3408.59,0.00042465,18]
[342876879,1732191106572,-500.0,0.00042465,18]
[342876880,1732191106582,-699.66,0.00042465,18]
[342876881,1732191106592,-554.9,0.00042465,18]
[342876882,1732191106601,-406.5268422,0.00042465,18]
[342876883,1732191106611,-500.0,0.00042465,18]
[342876884,1732191106621,-500.0,0.00042465,18]
[342876885,1732191106631,-500.0,0.00042465,18]
[342876886,1732191106641,-533.33,0.00042465,18]
[342876887,1732191106651,-500.0,0.00042465,18]
[342876888,1732191106661,-1028.47,0.00042465,18]
[342876889,1732191106670,-500.0,0.00042465,18]
[342876890,1732191106680,-500.0,0.00042465,18]
[342876891,1732191106690,-500.0,0.00042465,18]
[342876892,1732191106699,-500.0,0.00042465,18]
[342876893,1732191106709,-500.0,0.00042465,18]
[342876894,1732191106719,-518.67,0.00042465,18]
[342876895,1732191106728,-500.0,0.00042465,18]
[342876896,1732191106738,-500.0,0.00042465,18]
[342876897,1732191106748,-500.0,0.00042465,18]
[342876898,1732191106757,-2749.03,0.00042465,18]
[342876899,1732191106767,-500.0,0.00042465,18]
[342876900,1732191106777,-1977.7,0.00042465,18]
[342876901,1732191106787,-500.0,0.00042465,18]
[342876902,1732191106797,-1278.24,0.00042465,18]
[342876903,1732191106806,-530.31761884,0.00042465,18]
[342876904,1732191106816,-2211.45,0.00042465,18]
[342876905,1732191106826,-285.2382245,0.00042465,18]
[342876906,1732191106836,-919.94,0.00042465,18]
[342876907,1732191106846,-500.0,0.00042465,18]
[342876908,1732191106855,-2368.04,0.00042465,18]
[342876909,1732191106865,-500.0,0.00042465,18]
[342876910,1732191106875,-544.48,0.00042465,18]
[342876911,1732191106887,-540.51,0.00042465,18]
[342876912,1732191106897,-578.9,0.00042465,18]
[342876913,1732191106907,-533.63,0.00042465,18]
[342876914,1732191106917,-500.0,0.00042465,18]